Cogmind - Beta 11.1 @@@ ROGUE MODE // 2022.05.13 @ 23:47:53 Player: ChromeKnight Result: Self-destructed Performance ------------- Evolutions (1) 500 Regions Visited (4) 800 Robots Destroyed (20) 100 Value Destroyed (482) 482 Prototype IDs (0) 0 Alien Tech Used (0) 0 Bonus (0) 0 TOTAL SCORE: 1882 Bonus ------- None Cogmind --------- Core Integrity 322/400 Matter 300/300 Energy 225/250 System Corruption 0% Temperature Warning (326) Movement Core (350) Ox6 Location -9/Mines Parts ------- > --- POWER (1) -------- Ion Engine > --- PROPULSION (4) --- Hover Unit Hover Unit Hover Unit > --- UTILITY (2) ------ Medium Storage Unit Light Armor Plating > --- WEAPON (2) ------- Particle Gun > --- INVENTORY (10) --- Hover Unit Improved Heat Sink Large Storage Unit Light Armor Plating Light Armor Plating Mining Claw Signal Generator Peak State ------------ > --- POWER ------------ Light Nuclear Core > --- PROPULSION ------- Aluminum Leg Aluminum Leg > --- UTILITY ---------- Medium Storage Unit Light Armor Plating > --- WEAPON ----------- Beam Cannon Light Assault Rifle > --- INVENTORY -------- Hover Unit Hover Unit Hover Unit Hover Unit Hover Unit Large Storage Unit Light Armor Plating Light Armor Plating Light Armor Plating Mining Claw [Rating: 10] Favorites ----------- Power Light Ion Engine Engine Light Ion Engine Power Core Light Nuclear Core Propulsion Hover Unit Leg Aluminum Leg Hover Unit Hover Unit Utility Medium Storage Unit Storage Medium Storage Unit Protection Light Armor Plating Weapon Light Assault Rifle Energy Gun Particle Gun Energy Cannon Beam Cannon Ballistic Gun Light Assault Rifle Build | -11 -10 -10 -9 -9 ------- Run | Scr Mat Min Mat Min Slots Evolved 2 | . . . 2 . Power . | . . . . . Propulsion 2 | . . . 2 . Utility . | . . . . . Weapon . | . . . . . Parts Attached 26 | 6 9 3 . 8 Power 6 | 1 2 1 . 2 Engine 5 | 1 1 1 . 2 Core 1 | . 1 . . . Reactor . | . . . . . Propulsion 8 | 2 2 . . 4 Treads . | . . . . . Leg 4 | 2 2 . . . Wheel . | . . . . . Hover 4 | . . . . 4 Flight . | . . . . . Utility 5 | 1 2 1 . 1 Device . | . . . . . Storage 2 | 1 1 . . . Processor . | . . . . . Hackware . | . . . . . Protection 3 | . 1 1 . 1 Artifact . | . . . . . Weapon 7 | 2 3 1 . 1 Energy Gun 3 | 1 1 . . 1 Energy Cannon 1 | . 1 . . . Ballistic Gun 3 | 1 1 1 . . Ballistic Cannon . | . . . . . Launcher . | . . . . . Special Weapon . | . . . . . Impact Weapon . | . . . . . Slashing Weapon . | . . . . . Piercing Weapon . | . . . . . Special Melee Weapon . | . . . . . Unidentified Prototypes . | . . . . . Parts Lost 10 | . 4 1 . 5 Power 1 | . . . . 1 Propulsion 5 | . 2 . . 3 Utility 2 | . . 1 . 1 Weapon 2 | . 2 . . . Highest Loss Streak 4 | . 3 1 . 4 To Critical Strikes . | . . . . . Average Slot Usage (%) 86 | . 85 99 77 82 Engine 9 | . 11 5 11 9 Core 2 | . 2 8 . . Leg 16 | . 27 28 22 1 Hover 15 | . . . . 38 Storage 12 | . 14 14 11 11 Protection 11 | . 10 13 11 10 Energy Gun 8 | . 4 14 11 11 Energy Cannon 3 | . 9 . . . Ballistic Gun 5 | . 5 14 11 1 Naked Turns . | . . . . . Heaviest Build 22 | 11 22 20 18 21 Greatest Support 24 | 20 20 20 20 24 Greatest Overweight (x) 6 | 1 1 . . 6 Average Overweight (x) . | . . . . . Largest Inventory Capacity 10 | 8 10 10 10 10 Average Capacity 9 | 6 9 10 10 10 Most Carried 10 | . 10 10 9 10 Average Carried 8 | . 7 9 9 8 Final Capacity 10 | 8 10 10 10 10 Final Carried 10 | . 10 9 9 7 Class Distribution -------------------- 66% | Scavenger-Mutant 33% | Mutant Dominant Class ---------------- Mutant | -10/Materials Scavenger-Mutant | -10/Mines Scavenger-Mutant | -9/Materials Scavenger-Mutant | -9/Mines Resources | -11 -10 -10 -9 -9 ----------- Run | Scr Mat Min Mat Min Matter Collected 498 | 258 110 41 . 89 Remotely . | . . . . . Salvage Created 673 | . 343 72 . 258 Parts 38 | . 15 9 . 14 Haulers Intercepted 1 | . 1 . . . Recyclers Shooed . | . . . . . Parts Field Recycled . | . . . . . Retrieved Matter . | . . . . . Parts Self-Destructed . | . . . . . Prevented . | . . . . . Kills | -11 -10 -10 -9 -9 ------- Run | Scr Mat Min Mat Min Combat Hostiles Destroyed 17 | . 6 6 . 5 Guns 13 | . 2 6 . 5 Cannons 4 | . 4 . . . Classes Destroyed 6 | . 4 1 . 1 Hauler 1 | . 1 . . . Recycler 2 | . 1 . . 1 Swarmer 6 | . 1 5 . . Grunt 9 | . 5 . . 4 Brawler 1 | . . . . 1 Demolisher 1 | . . 1 . . Best Kill Streak 4 | . 2 3 . 4 Combat Bots Only 3 | . 2 3 . 2 Max Kills in Single Turn 2 | . 1 1 . 2 Gunslinging 1 | . . . . 1 Exploded . | . . . . . Melee . | . . . . . Uniques/NPCs Destroyed . | . . . . . Combat | -11 -10 -10 -9 -9 -------- Run | Scr Mat Min Mat Min Damage Taken 1544 | . 678 316 . 550 Core 274 | . 115 81 . 78 Absorbed by Shields . | . . . . . Core Remaining (%) 60 | 100 . 21 . . Volleys Fired 96 | . 48 19 . 29 Largest 2 | . 2 2 . 2 Hottest 80 | . 80 60 . 65 Shots Fired 149 | . 63 39 . 47 Gun 112 | . 26 39 . 47 Cannon 37 | . 37 . . . Launcher . | . . . . . Special . | . . . . . Kinetic 51 | . 14 19 . 18 Thermal 88 | . 39 20 . 29 Explosive . | . . . . . Electromagnetic 10 | . 10 . . . Robot Hit Streak 10 | . 9 9 . 10 Robot Miss Streak 5 | . 3 5 . 2 Penetration Max . | . . . . . Secondary Targets 3 | . 1 . . 2 Max Gunslinging Chain 1 | . 1 . . 1 Shots Hit Robots 95 | . 40 24 . 31 Core Hits 44 | . 13 10 . 21 Critical Kills . | . . . . . Critical Parts Destroyed . | . . . . . Critical Strikes . | . . . . . Melee Attacks . | . . . . . Impact . | . . . . . Slashing . | . . . . . Piercing . | . . . . . Sneak Attacks . | . . . . . Combat Hostiles . | . . . . . Follow-up Attacks . | . . . . . Damage Inflicted 1302 | . 662 247 . 393 Guns 836 | . 196 247 . 393 Cannons 419 | . 419 . . . Explosions 44 | . 44 . . . Melee . | . . . . . Ramming 3 | . 3 . . . Kinetic 296 | . 74 93 . 129 Thermal 881 | . 463 154 . 264 Explosive . | . . . . . Electromagnetic 122 | . 122 . . . Impact . | . . . . . Slashing . | . . . . . Piercing . | . . . . . Highest Corruption 5 | . 5 5 . . Average Corruption 5 | . 5 5 . . Corruption Purged . | . . . . . Corruption Blocked . | . . . . . Effects 23 | . 17 6 . . Message Errors 8 | . 6 2 . . Matter Fused 3 | . 3 . . . Heat Flow Errors 3 | . 3 . . . Data Loss (minor) 4 | . 1 3 . . Data Loss (major) 2 | . 2 . . . Misfires 2 | . 1 1 . . Alerts 1 | . 1 . . . Overload Shots . | . . . . . Overflow Damage . | . . . . . Projectiles . | . . . . . Explosions . | . . . . . Melee . | . . . . . Knockbacks . | . . . . . Impact . | . . . . . Kinetic . | . . . . . Secondary . | . . . . . Self-Inflicted Damage 39 | . 39 . . . Shots 1 | . 1 . . . Rammed 1 | . . . . 1 Targets Rammed 4 | . 3 . . 1 Kicked 3 | . 3 . . . Crushed . | . . . . . Highest Temperature 384 | . 321 165 . 384 Average Temperature 98 | . 103 72 . 112 Received Heat Transfer 489 | . 192 . . 297 Effects 5 | . 1 . . 4 Shutdowns 1 | . . . . 1 Energy Bleed 2 | . 1 . . 1 Short Circuit 2 | . . . . 2 Siege Activations . | . . . . . Robots Corrupted . | . . . . . Combat Hostiles . | . . . . . Parts Fried 1 | . 1 . . . Impact Corruptions . | . . . . . Robots Melted . | . . . . . Combat Hostiles . | . . . . . Parts Melted 2 | . 2 . . . Heat Transferred 1866 | . 938 350 . 578 Parts Sabotaged . | . . . . . Parts Stolen . | . . . . . Parts Stripped . | . . . . . Power Chain Reactions 1 | . 1 . . . Missiles Intercepted . | . . . . . Alert | -11 -10 -10 -9 -9 ------- Run | Scr Mat Min Mat Min Peak Influence 208 | . 150 208 80 40 Initial 80 | . . 58 80 31 Average 61 | . 60 147 80 24 Maximum Alert Level 1 | . . 1 . . Low Security (%) 99 | 100 100 97 100 100 Level 1 . | . . 2 . . Level 2 . | . . . . . Level 3 . | . . . . . Level 4 . | . . . . . Level 5 . | . . . . . High Security . | . . . . . Max Security . | . . . . . Squads Dispatched 1 | . . . . 1 Investigation . | . . . . . Extermination . | . . . . . Reinforcement . | . . . . . Assault 1 | . . . . 1 Garrison . | . . . . . Intercept . | . . . . . Searches Triggered . | . . . . . Construction Impeded . | . . . . . Haulers Reinforced . | . . . . . Active Scanning Responses . | . . . . . Cargo Convoy Interrupts . | . . . . . Stealth | -11 -10 -10 -9 -9 --------- Run | Scr Mat Min Mat Min Distress Signals 3 | . 1 . . 2 Communications Jammed . | . . . . . Distress Signals . | . . . . . Times Spotted 39 | . 11 13 . 15 Peak Tracking Total 8 | . 3 7 . 8 Tactical Retreats 5 | . 4 1 . . Traps | -11 -10 -10 -9 -9 ------- Run | Scr Mat Min Mat Min Traps Triggered . | . . . . . Indirectly . | . . . . . Trap Hack Attempts . | . . . . . Triggered . | . . . . . Disarmed . | . . . . . Reprogrammed . | . . . . . Reused . | . . . . . Traps Extracted . | . . . . . Installed . | . . . . . Triggered . | . . . . . Machines | -11 -10 -10 -9 -9 ---------- Run | Scr Mat Min Mat Min Machines Disabled . | . . . . . Max in Single Turn . | . . . . . Machines Sabotaged . | . . . . . Garrisons Compromised . | . . . . . Overloaded Fab Kills . | . . . . . Hacking | -11 -10 -10 -9 -9 --------- Run | Scr Mat Min Mat Min Machines Accessed . | . . . . . Terminals . | . . . . . Fabricators . | . . . . . Repair Stations . | . . . . . Recycling Units . | . . . . . Scanalyzers . | . . . . . Garrison Access . | . . . . . Total Hacks . | . . . . . Successful . | . . . . . Failed . | . . . . . Catastrophic . | . . . . . Database Lockouts . | . . . . . Manual . | . . . . . Terminals . | . . . . . Fabricators . | . . . . . Repair Stations . | . . . . . Recycling Units . | . . . . . Scanalyzers . | . . . . . Garrison Access . | . . . . . Terminal Hacks . | . . . . . Fabricator Hacks . | . . . . . Repair Station Hacks . | . . . . . Recycling Unit Hacks . | . . . . . Scanalyzer . | . . . . . Garrison Access Hacks . | . . . . . Unauthorized Hacks . | . . . . . Terminals . | . . . . . Fabricators . | . . . . . Repair Stations . | . . . . . Recycling Units . | . . . . . Scanalyzers . | . . . . . Garrison Access . | . . . . . Data Cores Recovered . | . . . . . Used . | . . . . . Hacking Detections . | . . . . . Full Trace Events . | . . . . . Feedback Events . | . . . . . Feedback Blocked . | . . . . . Robot Schematics Acquired . | . . . . . Robots Built . | . . . . . Authchips . | . . . . . Time . | . . . . . Total Robot Build Rating . | . . . . . Part Schematics Acquired . | . . . . . Parts Built . | . . . . . Authchips . | . . . . . Time . | . . . . . Total Part Build Rating . | . . . . . Parts Repaired . | . . . . . Time . | . . . . . Parts Recycled . | . . . . . Recycled Matter . | . . . . . Retrieved Matter . | . . . . . Retrieved Components . | . . . . . Parts Scanalyzed . | . . . . . Part Schematics Acquired . | . . . . . Parts Damaged . | . . . . . Bothacking | -11 -10 -10 -9 -9 ------------ Run | Scr Mat Min Mat Min Used RIF Installer . | . . . . . Robots Hacked . | . . . . . Non-combat . | . . . . . Combat . | . . . . . Robot Hacks Applied . | . . . . . Relay Couplers Released . | . . . . . Fabnet Peak Effective % . | . . . . . Robots Rewired . | . . . . . Allies Hacked . | . . . . . Hacks Repelled . | . . . . . Allies | -11 -10 -10 -9 -9 -------- Run | Scr Mat Min Mat Min Total Allies 1 | . . . . 1 Largest Group 1 | . . . . 1 Highest-Rated Group 31 | . . . . 31 Highest-Rated Ally 31 | . . . . 31 Total Orders . | . . . . . Ally Attacks 2 | . . . . 2 Total Damage 42 | . . . . 42 Kills . | . . . . . Allies Corrupted . | . . . . . Allies Melted . | . . . . . Intel | -11 -10 -10 -9 -9 ------- Run | Scr Mat Min Mat Min Robot Analysis Total . | . . . . . Derelict Logs Recovered 1 | . . 1 . . Drone Launches . | . . . . . Drone Recoveries . | . . . . . Exploration | -11 -10 -10 -9 -9 ------------- Run | Scr Mat Min Mat Min Turns Passed 1654 | 39 638 295 48 634 Spaces Moved 719 | 28 396 197 41 57 Core 10 | 6 . . . 4 Treads . | . . . . . Legs 669 | 22 396 197 41 13 Wheels . | . . . . . Hover 40 | . . . . 40 Flight . | . . . . . Fastest Speed 48 | 50 120 120 120 48 Average Speed 118 | 110 123 120 120 82 Slowest Speed 350 | 190 190 120 120 350 Overloaded Moves . | . . . . . Propulsion Burnouts . | . . . . . Robots Hopped . | . . . . . Cave-ins Triggered 1 | . 1 . . . Exploration Rate (%) 23 | 4 56 44 4 11 Regions Visited 4 Branch Regions 2 Pre-discovered Areas 1 | . . 1 . . Known Exits Taken . | . . . . . Unknown Exits Taken 4 | 1 1 1 1 . Scrap Searched 1 | . . 1 . . Spaces Dug . | . . . . . Terrain Destroyed 4 | . 4 . . . Melee . | . . . . . Projectile . | . . . . . AOE 4 | . 4 . . . Terrain Rammed . | . . . . . Walls Destroyed . | . . . . . Machines Disabled . | . . . . . Actions | -11 -10 -10 -9 -9 --------- Run | Scr Mat Min Mat Min Total 1377 | 33 482 222 40 600 Wait 514 | . 12 2 . 500 Move 715 | 27 395 196 40 57 Hop . | . . . . . Pick Up 13 | . 11 . . 2 Fast Attach 17 | 6 7 1 . 3 Attach 5 | . . 1 . 4 Detach . | . . . . . Swap 4 | . 2 1 . 1 Drop 9 | . 4 2 . 3 Fire 96 | . 48 19 . 29 Melee . | . . . . . Ram 1 | . . . . 1 Kick 3 | . 3 . . . Crush . | . . . . . Escape Stasis . | . . . . . Rewire . | . . . . . Trap . | . . . . . Miscellaneous . | . . . . . Route ------- -11/Scrapyard -10/Materials (discovered 2 exits: [*Mat] / [*Min]) -10/Mines (discovered 2 exits: [*Mat x2]) -9/Materials -9/Mines History --------- Turn | Location | Event 13 | -11/Scrapyard | Discovered new exit (range 14) 40 | -11/Scrapyard | Entered Materials 119 | -10/Materials | Crushed by falling debris 181 | -10/Materials | Lost 3 parts (1n2w) 300 | -10/Materials | Build established: Mutant 602 | -10/Materials | Discovered new exit (range 16) 659 | -10/Materials | Discovered new exit (range 15) 678 | -10/Materials | Entered Mines 717 | -10/Mines | Core integrity fell below 50% 766 | -10/Mines | Discovered new exit (range 3) 797 | -10/Mines | Build established: Scavenger-Mutant 932 | -10/Mines | Discovered new exit (range 5) 952 | -10/Mines | Assembled infested the area 957 | -10/Mines | Assisted by a Guerilla fighting off Assembled 973 | -10/Mines | Entered Materials 973 | -9/Materials | Evolved 2 slots: Propulsion x2 973 | -9/Materials | Discovered new exit (range 14) 1021 | -9/Materials | Entered Mines 1022 | -9/Mines | Met a Derelict testing a Signal Generator 1025 | -9/Mines | Found Signal Generator 1098 | -9/Mines | Lost 4 parts (1p2n1u) 1136 | -9/Mines | Excavation squad dispatched 1136 | -9/Mines | A large section of the Mines collapsed 1386 | -9/Mines | Excavation squad dispatched 1636 | -9/Mines | Excavation squad dispatched 1655 | -9/Mines | Self-destructed Last Messages --------------- 01386_ ALERT: Derelict activity in mines confirmed. Dispatching additional escorted excavation squad. 01556_ Dropped Ion Engine. 01623_ T-07 Excavator destroyed. 01625_ T-07 Excavator sends out distress signal. 01626_ U-05 Engineer lays Concrete. 01628_ I-25 Savior sends out distress signal. 01630_ G-34 Mercenary destroyed. 01636_ ALERT: Derelict activity in mines confirmed. Dispatching additional escorted excavation squad. 01648_ Overheating: Energy bleed (-44). 01651_ Hover Unit broken. 01651_ Overheating: Short circuit. 01651_ Slammed into G-34 Mercenary. 01651_ Hover Unit broken. 01651_ Destabilizing: Short circuit. 01652_ Power failure, Ion Engine shutdown. 01654_ Hover Unit destroyed. 01655_ Hover Unit broken. 01655_ Overheating: Short circuit. Map ----- +----------------------------------------------------+ | | | | | | | | | | | | | | | | | | | | | | | | | | | ??????????????????????????????????????? | | ??????????????????????????????????????? | | ??????????????????????????????????????? | | ???????????????#####??????????????????? | | ??????????????## #??????????????????? | | ?????#####????# #??????????????????? | | ????## ###??? #??????????????????? | | ????# ##??# #??????????????????? | | ????# !#??# t#??????????????????? | | ????## !=#### ##?????????????????? | | ?????## gg%%%% ####??????????????? | | ?????## [|[%%%= ; #??????????????? | | ?????# %###@=! i #?????????????? | | ?????# *##?#=% = #????????????? | | ?????## ##??##= t !%= ; ?????????? | | ??????####????#gt t ; | ????????? | | ?????????????? t ###????????? | | ?????????????? t t u #??????????? | | ?????????????? % ## ##??????????? | | ?????????????## ##?### ##???????????? | | ??????????????# g#????? #????????????? | | ?????????????? ?????? #????????????? | | ?????????????? t???????#????????????? | | ??????????????""" ????????????????????? | | ??????????????""" ???????????????????? | | ????????????????? #???????????????????? | | ????????????????? #???????????????????? | | ??????????????????????????????????????? | | ??????????????????????????????????????? | | ??????????????????????????????????????? | | ??????????????????????????????????????? | | ??????????????????????????????????????? | | ??????????????????????????????????????? | | ??????????????????????????????????????? | | ??????????????????????????????????????? | | ??????????????????????????????????????? | | ??????????????????????????????????????? | +----------------------------------------------------+ Best States ------------- Heat Dissipation 28 Energy Generation 14 Energy Capacity 250 Matter Stores 300 Matter Capacity 300 Sight Range 16 Terrain Scan Density 10 Armor Coverage 150 Evasion (%) 55 Item Schematics ----------------- None Robot Schematics ------------------ None Fabricated ------------ Nothing Alien Tech Used ----------------- None Achievements -------------- None Challenges ------------ None Game ------ Seed SuspensionLobotomyPerforator Manual? 0 Play Time 00:08:59 Cumulative 260.6 hours Start 2022.05.13 @ 20:46:09 End 2022.05.13 @ 23:47:53 Sessions 2 Manual Loads 0 Difficulty Rogue Special Mode None Game No. 494 Rogue 339 Adventurer 148 Explorer 7 Win Type - Total 10 Types 8/0/1/1/0/0/0/0/0 Lore% 70 Gallery% 83 Achievement% 65 Wizard Run 0 Options --------- ASCII 0 Keyboard 0 Movement Numpad Keybinds 0 Fullscreen 1 Font 18/SmallcapsGlow Map View 76x50 Tactical HUD 1 Map Filters NONE Filters NONE Steam 1 RUN: 2138cab5-6c78-408c-9b7b-9b336ef5b840